bitfinex/quotes_BTCUSD_20251221
["timestamp","ask_amount","ask_price","bid_price","bid_amount"]
[1766280354103,0.03966876,88402.0,88389.0,0.00568]
[1766280354303,0.03966876,88402.0,88390.0,0.01131349]
[1766280354529,0.03966876,88402.0,88389.0,0.01699362]
[1766280354895,0.03966876,88402.0,88390.0,0.01131349]
[1766280355086,0.03966876,88402.0,88389.0,0.1243]
[1766280355282,0.00568,88402.0,88389.0,0.13561362]
[1766280355580,0.03966876,88402.0,88389.0,0.13561362]
[1766280357805,0.03966876,88402.0,88389.0,0.1243]
[1766280358138,0.03966876,88402.0,88389.0,0.13561362]
[1766280358296,0.03966876,88402.0,88389.0,0.1243]
[1766280358693,0.07824876,88402.0,88389.0,0.1243]
[1766280359102,0.07824876,88402.0,88389.0,0.13561362]
[1766280359705,0.07824876,88402.0,88389.0,0.1243]
[1766280361116,0.07824876,88402.0,88389.0,0.13561362]
[1766280362372,0.00568,88402.0,88398.0,0.24059]
[1766280362571,0.0498908,88411.0,88398.0,0.24059]
[1766280362776,0.04426,88410.0,88398.0,0.24059]
[1766280363131,0.05557093,88410.0,88398.0,0.24059]
[1766280363336,0.03858,88409.0,88398.0,0.24059]
[1766280364637,0.03858,88409.0,88398.0,0.12197]
[1766280366978,0.00568,88408.0,88398.0,0.12197]
[1766280368978,0.04426,88408.0,88398.0,0.12197]
[1766280373461,0.04426,88408.0,88396.0,0.01131272]
[1766280376588,0.04426,88408.0,88395.0,0.01131285]
[1766280376773,0.04426,88408.0,88396.0,0.01131272]
[1766280376974,0.04426,88408.0,88395.0,0.01131285]
[1766280378747,0.04426,88408.0,88393.0,0.03398734]
[1766280378949,0.001099,88395.0,88388.0,6.4e-07]
[1766280379158,0.00732,88393.0,88384.0,0.02874059]
[1766280379378,0.00732,88393.0,88381.0,0.0169971]
[1766280379518,0.00732,88393.0,88382.0,0.01131452]
[1766280379927,0.00732,88393.0,88381.0,0.00568246]
[1766280381042,0.00732,88393.0,88382.0,0.01131452]
[1766280381423,0.00732,88393.0,88383.0,0.01131439]
[1766280382316,0.00568,88394.0,88386.0,0.05657004]
[1766280382535,0.00568,88394.0,88385.0,0.01131413]
[1766280382971,0.00568,88394.0,88386.0,0.011314]
[1766280383184,0.00568,88394.0,88385.0,0.01131413]
[1766280383387,0.00568,88394.0,88386.0,0.011314]
[1766280383726,0.00568,88394.0,88385.0,0.01131413]
[1766280384383,0.00568,88394.0,88384.0,0.23800426]
[1766280384641,0.00568,88394.0,88384.0,0.22669]
[1766280388953,0.00568,88394.0,88384.0,0.22434739]
[1766280391304,0.00568,88394.0,88384.0,0.23566165]
[1766280391640,0.00568,88394.0,88384.0,0.22434739]
[1766280394982,0.00568,88394.0,88384.0,0.11354]
[1766280397064,0.01699298,88394.0,88384.0,0.11354]
[1766280397697,0.00568,88394.0,88384.0,0.11354]
[1766280399286,0.00568,88394.0,88384.0,0.11358467]
[1766280405269,0.00568,88394.0,88384.0,0.12489893]
[1766280405399,0.00568,88394.0,88384.0,0.11358467]
[1766280405610,0.00568,88394.0,88384.0,0.12489893]
[1766280406235,0.00568,88394.0,88385.0,0.01131413]
[1766280406438,0.00568,88394.0,88384.0,0.12489893]
[1766280408033,0.00568,88394.0,88384.0,0.24074893]
[1766280409585,0.00568,88394.0,88384.0,0.22943467]
[1766280410044,0.00568,88394.0,88384.0,0.24074893]
[1766280410245,0.00568,88394.0,88384.0,0.22943467]
[1766280414516,0.00568,88394.0,88384.0,4.467e-05]
[1766280416295,0.01699298,88394.0,88384.0,6.7e-07]
[1766280416502,0.00568,88394.0,88384.0,6.7e-07]
[1766280417272,0.01534,88394.0,88384.0,6.7e-07]
[1766280417674,0.00568,88394.0,88384.0,6.7e-07]
[1766280431771,0.00568,88394.0,88384.0,0.24485067]
[1766280431979,0.00568,88394.0,88384.0,0.25616493]
[1766280432196,0.00568,88394.0,88385.0,0.24485]
[1766280436241,0.001055,88385.0,88384.0,6.7e-07]
[1766280436460,0.00408439,88394.0,88384.0,6.7e-07]
[1766280437395,0.00408439,88394.0,88385.0,0.24485]
[1766280437817,0.00353539,88394.0,88385.0,0.25616413]
[1766280438225,0.00353539,88394.0,88386.0,0.12191]
[1766280455477,0.00353539,88394.0,88386.0,0.133224]
[1766280455883,0.00353539,88394.0,88385.0,0.13425413]
[1766280456654,0.00353539,88394.0,88385.0,0.12294]
[1766280464492,0.00353539,88394.0,88385.0,0.24508]
[1766280468699,0.00353539,88394.0,88385.0,0.25639413]
[1766280468897,0.00353539,88394.0,88385.0,0.24508]
[1766280470152,0.00353539,88394.0,88385.0,0.25639413]
[1766280471311,0.00353539,88394.0,88385.0,0.24508]
[1766280471505,0.00353539,88394.0,88385.0,0.25639413]
[1766280473512,0.00353539,88394.0,88386.0,0.011314]
[1766280474233,0.00353539,88394.0,88385.0,0.25639413]
[1766280477397,0.00353539,88394.0,88386.0,0.011314]
[1766280477794,0.00353539,88394.0,88385.0,0.25639413]
[1766280480390,0.00353539,88394.0,88385.0,0.24508]
[1766280482689,0.0169971,88395.0,88386.0,0.00568]
[1766280482959,0.0169971,88395.0,88387.0,0.2456]
[1766280483113,0.00236331,88398.0,88387.0,0.2456]
[1766280483311,0.01131439,88397.0,88386.0,0.00568]
[1766280483492,0.01131439,88397.0,88387.0,0.2456]
[1766280495895,0.01131439,88397.0,88387.0,0.12346]
[1766280527931,0.01131439,88397.0,88386.0,0.00568]
[1766280528189,0.00966,88396.0,88386.0,0.00568]
[1766280528334,0.02097272,88396.0,88386.0,0.00568]
[1766280528552,0.01131272,88396.0,88386.0,0.00568]
[1766280528925,0.02262699,88395.0,88386.0,0.00568]
[1766280542925,0.03393984,88395.0,88386.0,0.00568]
[1766280543142,0.02262699,88395.0,88386.0,0.00568]
[1766280543355,0.01131298,88394.0,88384.0,0.00568067]
[1766280543577,0.01131336,88391.0,88384.0,0.00568067]
[1766280543818,0.01131324,88392.0,88384.0,0.00568067]
[1766280544019,0.01131375,88388.0,88381.0,2.46e-06]
[1766280544587,0.02097362,88389.0,88381.0,2.46e-06]
[1766280544739,0.00568,88388.0,88381.0,2.46e-06]
[1766280545141,0.005131,88388.0,88381.0,2.46e-06]
[1766280549521,0.005131,88388.0,88381.0,0.0113171]
[1766280550286,0.005131,88388.0,88382.0,0.01131452]
[1766280551165,0.005131,88388.0,88384.0,0.01131426]
[1766280551376,0.005131,88388.0,88383.0,0.01131439]
[1766280552371,0.005131,88388.0,88382.0,0.01131452]
[1766280552594,0.005131,88388.0,88383.0,0.01131439]
[1766280553538,0.005131,88388.0,88382.0,0.01131452]
[1766280555244,0.005131,88388.0,88383.0,0.01131439]
[1766280555436,0.005131,88388.0,88382.0,0.01131452]
[1766280556220,0.005131,88388.0,88383.0,0.01131439]
[1766280556429,0.005131,88388.0,88382.0,0.01131452]
[1766280556968,0.005131,88388.0,88383.0,0.01131439]
[1766280557471,0.005131,88388.0,88381.0,0.0113171]
[1766280557809,0.005131,88388.0,88381.0,2.46e-06]
[1766280559590,0.005131,88388.0,88381.0,0.0113171]
[1766280559789,0.005131,88388.0,88381.0,2.46e-06]
[1766280560905,0.005131,88388.0,88381.0,0.0113171]
[1766280561390,0.005131,88388.0,88381.0,2.46e-06]
[1766280561595,0.005131,88388.0,88381.0,0.0113171]
[1766280561800,0.005131,88388.0,88381.0,2.46e-06]
[1766280562234,0.005131,88388.0,88381.0,0.0113171]
[1766280562809,0.005131,88388.0,88382.0,0.01131452]
[1766280562976,0.005131,88388.0,88381.0,2.46e-06]
[1766280565368,0.014791,88388.0,88381.0,2.46e-06]
[1766280565574,0.00966,88387.0,88374.0,0.1194]
[1766280565971,0.01699362,88386.0,88374.0,0.1194]
[1766280566186,0.01699362,88386.0,88374.0,0.13071554]
[1766280566406,0.01699362,88386.0,88374.0,0.23409]
[1766280566610,0.01699362,88386.0,88375.0,0.13071541]
[1766280566763,0.01699362,88386.0,88375.0,0.24540541]
[1766280567288,0.01699362,88386.0,88375.0,0.23409]
[1766280567496,0.01699362,88386.0,88375.0,0.24540541]
[1766280568263,0.01699362,88386.0,88375.0,0.23409]
[1766280569840,0.01699362,88386.0,88376.0,0.1194]
[1766280570785,0.01699362,88386.0,88376.0,0.13071528]
[1766280570968,0.01699362,88386.0,88376.0,0.12600528]
[1766280571148,0.01699362,88386.0,88376.0,0.23409]
[1766280583209,0.01699362,88386.0,88374.0,0.01131554]
[1766280583434,0.01699362,88386.0,88375.0,0.01131541]
[1766280583676,0.01699362,88386.0,88377.0,0.1212]
[1766280583892,0.01699362,88386.0,88377.0,0.24392]
[1766280585744,0.01699362,88386.0,88377.0,0.24427918]
[1766280586735,0.01699362,88386.0,88377.0,0.12307918]
[1766280586935,0.01699362,88386.0,88378.0,0.1212]
[1766280587139,0.01699362,88386.0,88378.0,0.24392]
[1766280591548,0.01699362,88386.0,88377.0,0.00035918]
[1766280591875,0.0292776,88386.0,88377.0,0.00035918]
[1766280592083,0.01699362,88386.0,88377.0,0.00035918]
[1766280592287,0.00568,88387.0,88377.0,0.00035918]
[1766280592497,0.01699362,88386.0,88377.0,0.00035918]
[1766280593924,0.01699362,88386.0,88378.0,0.1212]
[1766280594058,0.01699362,88386.0,88378.0,0.12272]
[1766280596590,0.01699362,88386.0,88378.0,0.13403503]
[1766280597733,0.01699362,88386.0,88379.0,0.0113149]
[1766280598082,0.01699362,88386.0,88378.0,0.13403503]
[1766280599322,0.01699362,88386.0,88378.0,0.12272]
[1766280603071,0.01699362,88386.0,88377.0,0.00035918]
[1766280603926,0.00966,88385.0,88377.0,0.00035918]
[1766280604138,0.00966,88379.0,88366.0,0.01171656]
[1766280604342,0.00966,88377.0,88365.0,0.01171669]
[1766280604753,0.00966,88377.0,88365.0,0.0004]
[1766280605163,0.03399735,88376.0,88366.0,0.01131656]
[1766280605590,0.03399735,88376.0,88368.0,0.01131631]
[1766280605991,0.03399735,88376.0,88366.0,0.0678994]
[1766280606424,0.03399735,88376.0,88370.0,0.01131605]
[1766280607237,0.03399735,88376.0,88369.0,0.01131618]
[1766280607659,0.03399735,88376.0,88368.0,0.01131631]
[1766280607856,0.03399735,88376.0,88369.0,0.01131618]
[1766280608056,0.03399735,88376.0,88366.0,0.1834688]
[1766280608255,0.03399735,88376.0,88367.0,0.01131644]
[1766280609640,0.03399735,88376.0,88368.0,0.01131631]
[1766280611184,0.03399735,88376.0,88369.0,0.01131618]
[1766280611383,0.03399735,88376.0,88368.0,0.01131631]
[1766280611737,0.03399735,88376.0,88369.0,0.01131618]
[1766280611971,0.03399735,88376.0,88368.0,0.01131631]
[1766280612465,0.03399735,88376.0,88369.0,0.01131618]
[1766280612635,0.03399735,88376.0,88368.0,0.01131631]
[1766280613157,0.03399735,88376.0,88369.0,0.01131618]
[1766280613690,0.03399735,88376.0,88367.0,0.01131644]
[1766280613895,0.03399735,88376.0,88366.0,0.12688656]
[1766280614103,0.03399735,88376.0,88365.0,0.0004]
[1766280614322,0.02097618,88369.0,88361.0,0.0004]
[1766280614536,0.00019,88365.0,88355.0,0.11394]
[1766280614737,0.01699631,88368.0,88355.0,0.11394]
[1766280614912,0.01534,88368.0,88355.0,0.09613688]
[1766280615140,0.02097618,88364.0,88355.0,0.09613688]
[1766280615341,0.00568,88363.0,88355.0,0.10745485]
[1766280615558,0.00568,88363.0,88356.0,0.01131785]
[1766280615945,0.02097618,88362.0,88355.0,0.10745485]
[1766280616572,0.02097618,88362.0,88356.0,0.01131785]
[1766280616849,0.02061718,88362.0,88357.0,0.01131772]
[1766280617007,0.02061718,88362.0,88356.0,0.01131785]
[1766280617192,0.02061718,88362.0,88357.0,0.01131772]
[1766280618767,0.02061718,88362.0,88358.0,0.01131759]
[1766280619067,0.02061718,88362.0,88359.0,0.01131746]
[1766280619293,0.02061718,88362.0,88358.0,0.01131759]
[1766280619498,0.02061718,88362.0,88359.0,0.01131746]
[1766280621129,0.02061718,88362.0,88359.0,0.06790416]
[1766280621578,0.02061718,88362.0,88361.0,0.00033913]
[1766280623983,0.000339,88361.0,88356.0,0.01131785]
[1766280624181,0.06784299,88359.0,88355.0,0.01131797]
[1766280624383,0.06784299,88359.0,88356.0,0.01131785]
[1766280624589,0.06784299,88359.0,88355.0,0.01131797]
[1766280624829,0.06784299,88359.0,88356.0,0.01131785]
[1766280624973,0.06784299,88359.0,88355.0,0.01131797]
[1766280625167,0.06784299,88359.0,88356.0,0.01131785]
[1766280625373,0.06784299,88359.0,88355.0,0.01131797]
[1766280625905,0.06784299,88359.0,88356.0,0.01131785]
[1766280626701,0.06784299,88359.0,88355.0,0.01131797]
[1766280626883,0.06784299,88359.0,88356.0,0.01131785]
[1766280628781,0.06784299,88359.0,88355.0,0.01131797]
[1766280629567,0.06784299,88359.0,88354.0,0.0113181]
[1766280629941,0.06784299,88359.0,88355.0,0.01131797]
[1766280630337,0.06789067,88378.0,88359.0,0.11365]
[1766280630533,2.99e-06,88363.0,88360.0,0.11519]
[1766280630740,0.00568299,88363.0,88360.0,0.11519]
[1766280630937,0.00568299,88363.0,88359.0,0.1131]
[1766280631371,0.00568299,88363.0,88356.0,0.12650785]
[1766280632378,0.00568299,88363.0,88357.0,0.01131772]
[1766280632824,0.03803,88362.0,88353.0,0.03424875]
[1766280633035,0.03803,88360.0,88353.0,0.03424875]
[1766280634649,0.00568299,88363.0,88353.0,0.04556698]
[1766280634854,0.00568299,88363.0,88354.0,0.0113181]
[1766280635066,0.00568299,88363.0,88353.0,0.04556698]
[1766280636139,0.00568299,88363.0,88354.0,0.0113181]
[1766280636288,0.00568299,88363.0,88353.0,0.04556698]
[1766280636490,0.00568299,88363.0,88354.0,0.0113181]
[1766280638813,0.00568299,88363.0,88353.0,0.04556698]
[1766280639024,0.00568299,88363.0,88354.0,0.0113181]
[1766280640950,0.00568299,88363.0,88353.0,0.04556698]
[1766280641383,0.03803,88366.0,88356.0,0.01131785]
[1766280641549,0.03803,88366.0,88353.0,0.04556698]
[1766280641550,0.00568,88365.0,88360.0,0.1203]
[1766280644182,0.01250069,88363.0,88360.0,0.1203]
[1766280645232,0.01250069,88363.0,88359.0,0.11589]
[1766280648741,0.00568,88365.0,88363.0,0.00054931]
[1766280649017,0.00568,88365.0,88360.0,0.23619]
[1766280652723,0.00568,88365.0,88360.0,0.11589]
[1766280662399,0.03400202,88369.0,88365.0,0.000549]
[1766280662605,0.00568,88375.0,88365.0,0.01131669]
[1766280662778,0.00568,88375.0,88366.0,0.01131656]
[1766280663046,0.00568,88375.0,88367.0,0.01131644]
[1766280663701,0.00568,88375.0,88367.0,0.0339997]
[1766280663920,0.00568,88375.0,88368.0,0.11589]
[1766280664108,0.00568,88375.0,88369.0,0.1203]
[1766280665895,0.00568,88375.0,88369.0,0.11975]
[1766280675129,0.00010775,88378.0,88369.0,0.11975]
[1766280675336,0.00568,88377.0,88369.0,0.11975]
[1766280675946,0.00568,88377.0,88368.0,0.11589]
[1766280676153,0.00568,88376.0,88368.0,0.11589]
[1766280677418,0.00568,88376.0,88368.0,0.12720631]
[1766280677825,0.00568,88376.0,88366.0,0.02263108]
[1766280678028,0.00568,88376.0,88367.0,0.12884644]
[1766280681492,0.00568,88376.0,88367.0,0.11753]
[1766280682656,0.00568,88376.0,88367.0,0.12884644]
[1766280683559,0.00568,88376.0,88367.0,0.11753]
[1766280684894,0.00568,88376.0,88366.0,0.02263108]
[1766280685097,0.00568,88376.0,88366.0,0.01131452]
[1766280688154,0.00568,88376.0,88367.0,0.11899]
[1766280688598,0.00568,88375.0,88367.0,0.11899]
[1766280689746,0.00568,88375.0,88366.0,0.01131452]
[1766280690363,0.01131554,88374.0,88366.0,0.01131452]
[1766280691193,0.01131567,88373.0,88366.0,0.01131452]
[1766280691372,0.01131554,88374.0,88366.0,0.01131452]
[1766280691715,0.01131567,88373.0,88366.0,0.01131452]
[1766280691880,0.01131554,88374.0,88366.0,0.01131452]
[1766280692637,0.01131567,88373.0,88366.0,0.01131452]
[1766280693614,0.01131554,88374.0,88366.0,0.01131452]
[1766280694012,0.10720554,88374.0,88366.0,0.01131452]
[1766280694394,0.01131567,88373.0,88366.0,0.01131452]
[1766280694596,0.10720567,88373.0,88366.0,0.01131452]
[1766280694797,0.09589,88373.0,88366.0,0.01131452]
[1766280697289,0.10720567,88373.0,88366.0,0.01131452]
[1766280697490,0.09589,88373.0,88366.0,0.01131452]
[1766280697716,0.09589,88373.0,88366.0,4.52e-06]
[1766280697919,0.09589,88373.0,88363.0,0.00568]
[1766280698332,0.09589,88373.0,88363.0,0.0396797]
[1766280700297,0.095341,88373.0,88363.0,0.0396797]
[1766280700502,0.095341,88373.0,88363.0,0.1594997]
[1766280702621,0.095341,88373.0,88363.0,0.0396797]
[1766280702808,0.095341,88373.0,88356.0,0.01131785]
[1766280702809,0.06024,88369.0,88358.0,0.00568]
[1766280702970,0.05003,88368.0,88358.0,0.03968001]
[1766280703293,0.05003,88368.0,88358.0,0.0509976]
[1766280703657,0.049481,88368.0,88359.0,0.01131746]
[1766280704886,0.049481,88368.0,88358.0,0.0509976]
[1766280708057,0.049481,88368.0,88359.0,0.01131746]
[1766280708924,0.049481,88368.0,88358.0,0.03968001]
[1766280715983,0.049481,88368.0,88358.0,0.0509976]
[1766280716382,0.049481,88368.0,88359.0,0.01131746]
[1766280716895,0.049481,88368.0,88360.0,0.01131733]
[1766280717611,0.049481,88368.0,88359.0,0.01131746]
[1766280718948,0.049481,88368.0,88358.0,0.0509976]
[1766280719307,0.049481,88368.0,88358.0,0.1708176]
[1766280720072,0.049481,88368.0,88359.0,0.01131746]
[1766280720273,0.049481,88368.0,88360.0,0.01131733]
[1766280720515,0.00568,88369.0,88363.0,0.11982]
[1766280724376,0.1250069,88368.0,88363.0,0.11982]
[1766280730222,0.1250069,88368.0,88362.0,0.11334]
[1766280734512,0.1250069,88368.0,88360.0,0.03400001]
[1766280736259,0.1250069,88368.0,88361.0,0.01131721]
[1766280736459,0.1250069,88368.0,88363.0,0.12193]
[1766280736664,6.9e-06,88368.0,88364.0,0.12193]
[1766280751636,6.9e-06,88368.0,88363.0,0.13482695]
[1766280751637,6.9e-06,88368.0,88365.0,0.01131669]
[1766280751771,6.9e-06,88368.0,88367.0,0.24225]
[1766280761395,0.11614775,88378.0,88371.0,0.01131592]
[1766280761594,0.11614775,88378.0,88373.0,0.01131567]
[1766280761796,0.11614775,88378.0,88375.0,0.01131541]
[1766280761980,0.11614775,88378.0,88374.0,0.01131554]
[1766280762628,0.11614775,88378.0,88373.0,0.01131567]
[1766280762779,0.11614775,88378.0,88374.0,0.01131554]
[1766280763342,0.11614775,88378.0,88375.0,0.01131541]
[1766280763904,0.11614775,88378.0,88373.0,0.01131567]
[1766280764129,0.11614775,88378.0,88374.0,0.01131554]
[1766280764528,0.11614775,88378.0,88372.0,0.0113158]
[1766280764703,0.11614775,88378.0,88371.0,0.01131592]
[1766280764908,0.11614775,88378.0,88372.0,0.0113158]
[1766280768726,0.11614775,88378.0,88373.0,0.01131567]
[1766280769156,0.11614775,88378.0,88372.0,0.0113158]
[1766280769553,0.11614775,88378.0,88373.0,0.01131567]
[1766280770390,0.11614775,88378.0,88372.0,0.0113158]
[1766280770897,0.11614775,88378.0,88368.0,0.06789772]
[1766280771071,0.11614775,88378.0,88294.0,0.06812694]
[1766280771072,0.11614775,88378.0,88367.0,0.2452458]
[1766280771893,0.11614775,88378.0,88367.0,0.1288658]
[1766280774307,0.11614775,88378.0,88367.0,0.0113158]
[1766280775740,0.12635775,88378.0,88367.0,0.0113158]
[1766280781030,0.11604,88366.0,88362.0,0.00568]
[1766280781327,0.11604,88366.0,88362.0,1e-08]
[1766280781531,0.01021,88365.0,88353.0,0.04556673]
[1766280781689,0.11604,88361.0,88354.0,0.00568]
[1766280781884,0.11604,88361.0,88353.0,0.07956932]
[1766280781885,0.11604,88361.0,88353.0,0.00024673]
[1766280782111,0.11604,88361.0,88354.0,0.00568]
[1766280782285,0.12625,88361.0,88354.0,0.00568]
[1766280786197,0.11604,88361.0,88354.0,0.00568]
[1766280793609,0.03395354,88366.0,88352.0,0.00568]
[1766280793610,0.01021,88358.0,88352.0,0.00568]
[1766280793816,0.01021,88358.0,88350.0,0.01131849]
[1766280794014,0.01021,88358.0,88350.0,0.01131861]
[1766280794234,0.01021,88358.0,88349.0,0.01699874]
[1766280795242,0.01021,88358.0,88349.0,0.00568]
[1766280795702,0.01021,88358.0,88349.0,0.01699874]
[1766280795913,0.01021,88358.0,88349.0,0.00568]
[1766280796113,0.01021,88358.0,88349.0,0.01699874]
[1766280796312,0.01021,88358.0,88348.0,0.01131887]
[1766280796492,0.01021,88358.0,88349.0,0.00568]
[1766280796692,0.01021,88358.0,88349.0,0.01699874]
[1766280797310,0.01021,88358.0,88349.0,0.00568]
[1766280797513,0.01021,88358.0,88349.0,0.01699874]
[1766280797715,0.01021,88358.0,88349.0,0.00568]
[1766280798751,0.01021,88358.0,88349.0,0.01699874]
[1766280801191,0.01021,88358.0,88349.0,0.00568]
[1766280801558,0.01021,88358.0,88349.0,0.01699874]
[1766280803008,0.01021,88358.0,88350.0,0.01131861]
[1766280803817,0.01021,88358.0,88349.0,0.01699874]
[1766280804822,0.01021,88358.0,88349.0,0.00568]
[1766280805982,0.01131785,88356.0,88344.0,0.0004]
[1766280806183,0.01131785,88356.0,88340.0,0.36874353]
[1766280806184,0.000549,88349.0,88340.0,0.36874353]
[1766280806333,0.01021,88352.0,88344.0,0.00568]
[1766280806540,0.01021,88352.0,88345.0,0.00024673]
[1766280806940,0.03400799,88351.0,88345.0,0.00024673]
[1766280814529,0.03400799,88351.0,88344.0,0.00568]
[1766280814936,0.01021,88350.0,88344.0,0.00568]
[1766280815730,0.04421799,88350.0,88344.0,0.00568]
[1766280816781,0.01021,88349.0,88344.0,0.00568]
[1766280817184,0.04421799,88349.0,88344.0,0.00568]
[1766280824057,0.03400799,88349.0,88344.0,0.00568]
[1766280825837,0.03400799,88349.0,88340.0,0.36874353]
[1766280827360,0.03400799,88349.0,88340.0,0.36910302]
[1766280828161,0.05553673,88349.0,88340.0,0.36910302]
[1766280828567,0.01131887,88348.0,88340.0,0.36910302]
[1766280828763,0.02152874,88349.0,88340.0,0.36910302]
[1766280828985,0.03400868,88348.0,88340.0,0.36910302]
[1766280829945,0.04532755,88348.0,88340.0,0.36910302]
[1766280830686,0.03400868,88348.0,88340.0,0.36910302]
[1766280831374,0.011319,88347.0,88340.0,0.36910302]
[1766280831574,0.04532755,88348.0,88340.0,0.36910302]
[1766280831802,0.06791449,88347.0,88340.0,0.23278479]
[1766280832010,0.06791561,88345.0,88339.0,0.28878996]
[1766280832210,0.01131951,88343.0,88339.0,0.10273996]
[1766280832409,0.0113199,88340.0,88337.0,0.45003401]
[1766280832585,0.06792002,88340.0,88337.0,0.20003401]
[1766280832991,0.03401358,88339.0,88337.0,0.19378295]
[1766280835497,0.03401358,88339.0,88337.0,0.18167152]
[1766280836234,0.03401358,88339.0,88337.0,0.17599429]
[1766280836750,0.00568,88342.0,88339.0,0.000549]
[1766280836938,0.00568,88342.0,88337.0,0.17599429]
[1766280837132,0.01699964,88342.0,88337.0,0.17599429]
[1766280837338,0.03401358,88341.0,88337.0,0.17599429]
[1766280837894,0.03401358,88341.0,88337.0,0.17624106]
[1766280838048,0.0113199,88340.0,88337.0,0.17624106]
[1766280838253,0.03401358,88341.0,88337.0,0.17624106]
[1766280839870,0.00568,88342.0,88337.0,0.17624106]
[1766280840070,0.05101322,88342.0,88337.0,0.17624106]
[1766280840287,0.03969358,88342.0,88337.0,0.17624106]
[1766280840487,0.06792078,88339.0,88336.0,0.39885446]
[1766280840683,0.06792078,88339.0,88335.0,0.19617447]
[1766280840684,0.05660206,88336.0,88335.0,0.19617447]
[1766280840915,0.00568,88336.0,88335.0,0.15062277]
[1766280841123,0.00568,88336.0,88335.0,0.10497722]
[1766280841344,0.01700015,88336.0,88331.0,0.61894365]
[1766280841502,0.01700015,88336.0,88334.0,0.32330348]
[1766280841705,0.01700015,88336.0,88334.0,0.28333981]
[1766280841905,0.01700015,88336.0,88334.0,0.2037752]
[1766280842111,0.01700015,88336.0,88334.0,0.11954573]
[1766280842370,0.00568,88336.0,88334.0,0.079688]
[1766280842569,0.00568,88336.0,88334.0,0.05931565]
[1766280844669,0.005131,88336.0,88334.0,0.05931565]
[1766280846182,0.005131,88336.0,88334.0,0.05022004]
[1766280846379,0.005131,88336.0,88334.0,0.04967104]
[1766280864646,0.01645141,88336.0,88331.0,0.61894365]
[1766280865036,0.005131,88336.0,88331.0,0.61894365]
[1766280866977,0.01645141,88336.0,88331.0,0.61894365]
[1766280868846,0.005131,88336.0,88331.0,0.61894365]
[1766280869296,0.01645141,88336.0,88331.0,0.61894365]
[1766280870401,0.005131,88336.0,88331.0,0.61894365]
[1766280873300,0.01645141,88336.0,88331.0,0.61894365]
[1766280876132,0.07305359,88336.0,88331.0,0.61894365]
[1766280876535,0.01645141,88336.0,88331.0,0.61894365]
[1766280877842,0.05660462,88332.0,88331.0,0.12113601]
[1766280878061,0.07852648,88332.0,88329.0,0.20431361]
[1766280878273,0.07852648,88332.0,88296.0,0.0004]
[1766280878274,0.22643372,88327.0,88296.0,0.0004]
[1766280878487,0.22643372,88327.0,88319.0,0.39845535]
[1766280878488,0.05661231,88320.0,88319.0,0.39845535]
[1766280878659,0.05661231,88320.0,88296.0,0.0004]
[1766280878660,0.07289325,88320.0,88318.0,0.2477243]
[1766280878905,0.01060094,88319.0,88318.0,0.05531259]
[1766280879076,0.0566136,88318.0,88317.0,0.25050882]
[1766280879296,0.07289454,88318.0,88317.0,0.07723763]
[1766280879502,0.07289454,88318.0,88317.0,0.04321119]
[1766280879698,0.07289454,88318.0,88316.0,0.15101696]
[1766280879928,0.07289454,88318.0,88296.0,0.0004]
[1766280879929,0.05661488,88316.0,88315.0,0.54353216]
[1766280880134,0.05661488,88316.0,88315.0,0.44704157]
[1766280880346,0.00035904,88316.0,88315.0,0.37898869]
[1766280880596,0.00035904,88316.0,88315.0,0.23085149]
[1766280880848,0.00035904,88316.0,88315.0,0.19682505]
[1766280881040,0.00035904,88316.0,88315.0,0.16279861]
[1766280881158,0.00035904,88316.0,88315.0,0.12877217]
[1766280881357,0.00035904,88316.0,88315.0,0.09474573]
[1766280881556,0.00035904,88316.0,88315.0,0.06071929]
[1766280881852,0.00035904,88316.0,88315.0,0.02669285]
[1766280882098,0.00035904,88316.0,88298.0,0.03443052]
[1766280882478,0.00035904,88316.0,88314.0,0.36519996]
[1766280882683,0.00035904,88316.0,88314.0,0.19508625]
[1766280882915,0.00035904,88316.0,88314.0,0.07052774]
[1766280883119,0.01168201,88316.0,88298.0,0.03443052]
[1766280883349,0.00035904,88316.0,88298.0,0.03443052]
[1766280883929,0.00035904,88316.0,88313.0,0.58418153]
[1766280884111,0.01168201,88316.0,88315.0,0.00043193]
[1766280884318,0.01168201,88316.0,88313.0,0.57356398]
[1766280884585,0.01168201,88316.0,88313.0,0.38226373]
[1766280885055,0.00035904,88316.0,88313.0,0.38226373]
[1766280886161,0.01168201,88316.0,88313.0,0.38226373]
[1766280886736,0.00035904,88316.0,88313.0,0.38226373]
[1766280887835,0.01168201,88316.0,88313.0,0.38226373]
[1766280888041,0.00035904,88316.0,88313.0,0.38226373]
[1766280888480,4e-08,88316.0,88313.0,0.38226373]
[1766280890075,0.01132301,88316.0,88313.0,0.38226373]
[1766280891142,0.06793798,88316.0,88313.0,0.38190473]
[1766280891552,0.06793798,88316.0,88313.0,0.30176473]
[1766280892165,0.05661616,88314.0,88313.0,0.30176473]
[1766280892369,0.05661616,88314.0,88313.0,0.29233459]
[1766280893263,0.03403052,88314.0,88313.0,0.29233459]
[1766280893466,0.05661616,88314.0,88313.0,0.29233459]
[1766280895828,0.08665562,88315.0,88314.0,0.000549]
[1766280895973,0.09064604,88315.0,88314.0,0.000549]
[1766280896375,0.09064604,88315.0,88313.0,0.29233459]
[1766280896597,0.0566168,88313.0,88312.0,0.55168823]
[1766280896795,0.0566168,88313.0,88311.0,0.52951272]
[1766280897435,0.0566168,88313.0,88311.0,0.49641818]
[1766280898239,0.0566168,88313.0,88312.0,0.00568]
[1766280898395,0.07916622,88314.0,88312.0,0.00568]
[1766280898600,0.07916622,88314.0,88313.0,0.00568]
[1766280898799,0.01132323,88314.0,88311.0,0.49641818]
[1766280899005,0.01132323,88314.0,88313.0,0.00568]
[1766280899200,0.07916622,88314.0,88313.0,0.00568]
[1766280899592,0.13578238,88314.0,88313.0,0.00568]
[1766280899797,0.06784299,88314.0,88313.0,0.00568]
[1766280900000,4e-08,88316.0,88313.0,0.00568]
[1766280900460,0.01132301,88316.0,88313.0,0.00568]
[1766280900622,4e-08,88316.0,88313.0,0.00568]
[1766280901021,0.01132301,88316.0,88313.0,0.00568]
[1766280901242,4e-08,88316.0,88313.0,0.00568]
[1766280902059,0.01132301,88316.0,88313.0,0.00568]
[1766280903038,4e-08,88316.0,88313.0,0.00568]
[1766280903446,0.02264573,88318.0,88313.0,0.00568]
[1766280903447,0.01132301,88318.0,88313.0,0.00568]
[1766280903645,0.00010763,88318.0,88313.0,0.00568]
[1766280903845,0.01132105,88331.0,88313.0,0.00568]
[1766280903846,0.01132131,88329.0,88313.0,0.00568]